[Event "*** Titled Tuesday Blitz"]
[Site "Chess.com"]
[Date "2021.03.09"]
[Round "2"]
[White "The_filthy"]
[Black "Chessmasterzt"]
[Result "0-1"]
[WhiteElo "2330"]
[BlackElo "2625"]
[TimeControl "180+1"]
[EndTime "10:18:54 PST"]
[Termination "Chessmasterzt won by resignation"]

1. e4 {[%clk 0:03:00.9]} 1... c5 {[%clk 0:02:58.2]} 2. Nf3 {[%clk 0:02:59]} 2...
Nc6 {[%clk 0:02:57.7]} 3. d4 {[%clk 0:02:57.7]} 3... cxd4 {[%clk 0:02:58.6]} 4.
Nxd4 {[%clk 0:02:57.8]} 4... g6 {[%clk 0:02:59]} 5. c4 {[%clk 0:02:53.6]} 5...
Bg7 {[%clk 0:02:56.8]} 6. Nc2 {[%clk 0:02:50.2]} 6... d6 {[%clk 0:02:53.4]} 7.
Nc3 {[%clk 0:02:49]} 7... Bxc3+ {[%clk 0:02:52.6]} 8. bxc3 {[%clk 0:02:46.9]}
8... Qa5 {[%clk 0:02:50.3]} 9. Bd2 {[%clk 0:02:46.2]} 9... Nf6 {[%clk
0:02:49.4]} 10. Bd3 {[%clk 0:02:45.5]} 10... Ne5 {[%clk 0:02:39.9]} 11. Qe2
{[%clk 0:02:39.7]} 11... Bg4 {[%clk 0:02:28.9]} 12. f3 {[%clk 0:02:38.2]} 12...
Be6 {[%clk 0:02:29.3]} 13. O-O {[%clk 0:02:30.9]} 13... Rc8 {[%clk 0:02:26.7]}
14. Ne3 {[%clk 0:02:28.9]} 14... Qc5 {[%clk 0:02:08]} 15. Rab1 {[%clk
0:02:00.7]} 15... b6 {[%clk 0:01:52.8]} 16. Rb5 {[%clk 0:01:50.6]} 16... Qa3
{[%clk 0:01:35.9]} 17. Nd5 {[%clk 0:01:40.9]} 17... Nfd7 {[%clk 0:01:13.8]} 18.
Kh1 {[%clk 0:01:27]} 18... Qxa2 {[%clk 0:01:09.7]} 19. Nb4 {[%clk 0:00:51.7]}
19... Qa4 {[%clk 0:00:54.4]} 20. Nd5 {[%clk 0:00:26.3]} 20... Nxd3 {[%clk
0:00:39.2]} 21. Qxd3 {[%clk 0:00:26.3]} 21... Ne5 {[%clk 0:00:34.3]} 22. Qb1
{[%clk 0:00:22.4]} 22... Qxc4 {[%clk 0:00:30.1]} 23. Bh6 {[%clk 0:00:21.2]}
23... Bxd5 {[%clk 0:00:22.5]} 24. exd5 {[%clk 0:00:17.4]} 24... Qd3 {[%clk
0:00:21.7]} 25. f4 {[%clk 0:00:07.1]} 25... Qxb1 {[%clk 0:00:18.4]} 26. Rfxb1
{[%clk 0:00:07.5]} 26... Nc4 {[%clk 0:00:12.4]} 27. Ra1 {[%clk 0:00:06.5]} 27...
a5 {[%clk 0:00:11.8]} 28. h4 {[%clk 0:00:06]} 28... f6 {[%clk 0:00:12.1]} 29.
Ra4 {[%clk 0:00:04]} 29... Kf7 {[%clk 0:00:11.6]} 30. Rxc4 {[%clk 0:00:03.9]}
30... Rxc4 {[%clk 0:00:12.5]} 31. Rxb6 {[%clk 0:00:04.6]} 31... Rxc3 {[%clk
0:00:12.2]} 32. Rb7 {[%clk 0:00:04.9]} 32... Rhc8 {[%clk 0:00:11.5]} 33. f5
{[%clk 0:00:05.1]} 0-1

[Event "*** Titled Tuesday Blitz"]
[Site "Chess.com"]
[Date "2021.03.09"]
[Round "2"]
[White "Alexandr_Kholin"]
[Black "Anaiy"]
[Result "1-0"]
[WhiteElo "2454"]
[BlackElo "2218"]
[TimeControl "180+1"]
[EndTime "10:18:55 PST"]
[Termination "Alexandr_Kholin won on time"]

1. d4 {[%clk 0:03:00.9]} 1... d5 {[%clk 0:02:59]} 2. Nf3 {[%clk 0:02:58.7]} 2...
Nf6 {[%clk 0:02:58.1]} 3. Bf4 {[%clk 0:02:57.8]} 3... e6 {[%clk 0:02:57.6]} 4.
e3 {[%clk 0:02:44.4]} 4... c5 {[%clk 0:02:57.2]} 5. c3 {[%clk 0:02:44.1]} 5...
Nc6 {[%clk 0:02:55.9]} 6. Nbd2 {[%clk 0:02:42.6]} 6... Bd6 {[%clk 0:02:56]} 7.
Ne5 {[%clk 0:02:38.4]} 7... O-O {[%clk 0:02:54]} 8. Bd3 {[%clk 0:02:37.7]} 8...
Qc7 {[%clk 0:02:53.1]} 9. Ndf3 {[%clk 0:02:37.3]} 9... b6 {[%clk 0:02:52.5]} 10.
O-O {[%clk 0:02:31.1]} 10... Bb7 {[%clk 0:02:52.6]} 11. Qb1 {[%clk 0:02:22.5]}
11... Ne7 {[%clk 0:02:49.6]} 12. Bg5 {[%clk 0:02:17.2]} 12... Ne4 {[%clk
0:02:46.6]} 13. Bxe7 {[%clk 0:01:57.3]} 13... Qxe7 {[%clk 0:02:36]} 14. Bxe4
{[%clk 0:01:37.8]} 14... dxe4 {[%clk 0:02:36.9]} 15. Nd2 {[%clk 0:01:37.7]}
15... Bxe5 {[%clk 0:02:24.4]} 16. dxe5 {[%clk 0:01:36.8]} 16... Qh4 {[%clk
0:02:24.1]} 17. Rd1 {[%clk 0:01:28.1]} 17... Qg4 {[%clk 0:02:13.7]} 18. Nc4
{[%clk 0:01:24.7]} 18... Bd5 {[%clk 0:02:09.5]} 19. Nd6 {[%clk 0:01:22.6]} 19...
Qg5 {[%clk 0:01:44.7]} 20. Nxe4 {[%clk 0:01:11.3]} 20... Qxe5 {[%clk 0:01:44.2]}
21. Ng3 {[%clk 0:01:07.8]} 21... Rfd8 {[%clk 0:01:36]} 22. Qc2 {[%clk
0:01:05.5]} 22... Bc6 {[%clk 0:01:33.4]} 23. e4 {[%clk 0:01:01.9]} 23... h5
{[%clk 0:01:28.1]} 24. f3 {[%clk 0:01:01.1]} 24... h4 {[%clk 0:01:24.5]} 25. Nf1
{[%clk 0:01:01.2]} 25... Qf4 {[%clk 0:01:20.1]} 26. h3 {[%clk 0:00:59.3]} 26...
Bb5 {[%clk 0:00:36.7]} 27. Qf2 {[%clk 0:00:53]} 27... Bxf1 {[%clk 0:00:31.8]}
28. Qxf1 {[%clk 0:00:53.7]} 28... Qe3+ {[%clk 0:00:30.8]} 29. Qf2 {[%clk
0:00:52.8]} 29... Qf4 {[%clk 0:00:25]} 30. a4 {[%clk 0:00:50.7]} 30... a5 {[%clk
0:00:24.1]} 31. Qe2 {[%clk 0:00:48.8]} 31... g5 {[%clk 0:00:23.9]} 32. Qb5
{[%clk 0:00:44.8]} 32... Qe3+ {[%clk 0:00:16.7]} 33. Kf1 {[%clk 0:00:41.8]}
33... Rd2 {[%clk 0:00:13.9]} 34. Rxd2 {[%clk 0:00:38.4]} 34... Qxd2 {[%clk
0:00:14.8]} 35. Qxb6 {[%clk 0:00:37.5]} 35... Qd3+ {[%clk 0:00:14.7]} 36. Kg1
{[%clk 0:00:37.1]} 36... Qe3+ {[%clk 0:00:14.8]} 37. Kh1 {[%clk 0:00:37.6]}
37... Rc8 {[%clk 0:00:06]} 38. Qxa5 {[%clk 0:00:34.1]} 38... Qe2 {[%clk
0:00:05.7]} 39. Qb6 {[%clk 0:00:32.2]} 39... c4 {[%clk 0:00:04]} 40. a5 {[%clk
0:00:29.8]} 1-0

[Event "*** Titled Tuesday Blitz"]
[Site "Chess.com"]
[Date "2021.03.09"]
[Round "2"]
[White "JiiHart"]
[Black "CrushingKings"]
[Result "0-1"]
[WhiteElo "2060"]
[BlackElo "2390"]
[TimeControl "180+1"]
[EndTime "10:18:56 PST"]
[Termination "CrushingKings won on time"]

1. e4 {[%clk 0:03:00.9]} 1... g6 {[%clk 0:02:54.8]} 2. d4 {[%clk 0:03:00.1]}
2... Bg7 {[%clk 0:02:45.2]} 3. Nc3 {[%clk 0:02:59.6]} 3... c6 {[%clk 0:02:45.7]}
4. Nf3 {[%clk 0:02:48.9]} 4... d5 {[%clk 0:02:45.7]} 5. h3 {[%clk 0:02:40.9]}
5... Nh6 {[%clk 0:02:45.8]} 6. g4 {[%clk 0:02:35.1]} 6... f6 {[%clk 0:02:40]} 7.
Be3 {[%clk 0:02:27.3]} 7... Nf7 {[%clk 0:02:39.9]} 8. Qd2 {[%clk 0:02:18.6]}
8... b5 {[%clk 0:02:13.4]} 9. a3 {[%clk 0:02:16.6]} 9... a6 {[%clk 0:02:10.9]}
10. O-O-O {[%clk 0:01:57.3]} 10... Be6 {[%clk 0:02:05.1]} 11. exd5 {[%clk
0:01:34.4]} 11... Bxd5 {[%clk 0:02:03]} 12. Nxd5 {[%clk 0:01:33.7]} 12... Qxd5
{[%clk 0:02:02.6]} 13. Bg2 {[%clk 0:01:25.2]} 13... Qa2 {[%clk 0:02:02.5]} 14.
Qc3 {[%clk 0:01:17]} 14... Nd6 {[%clk 0:02:02]} 15. Nd2 {[%clk 0:01:00]} 15...
O-O {[%clk 0:01:01]} 16. b4 {[%clk 0:00:22.6]} 16... f5 {[%clk 0:00:45]} 17.
gxf5 {[%clk 0:00:19.3]} 17... Nxf5 {[%clk 0:00:44.5]} 18. Qb3+ {[%clk
0:00:19.5]} 18... Qxb3 {[%clk 0:00:44.3]} 19. Nxb3 {[%clk 0:00:19.6]} 19... Nxe3
{[%clk 0:00:44.1]} 20. fxe3 {[%clk 0:00:20.4]} 20... Bh6 {[%clk 0:00:44.1]} 21.
Rde1 {[%clk 0:00:18.3]} 21... Rf2 {[%clk 0:00:36.4]} 22. Bf1 {[%clk 0:00:14.7]}
22... Nd7 {[%clk 0:00:34.6]} 23. Bd3 {[%clk 0:00:14.3]} 23... Raf8 {[%clk
0:00:34.3]} 24. Nd2 {[%clk 0:00:10.9]} 24... e5 {[%clk 0:00:30.4]} 25. Ne4
{[%clk 0:00:10.6]} 25... R2f3 {[%clk 0:00:30.4]} 26. dxe5 {[%clk 0:00:08.8]}
26... Bxe3+ {[%clk 0:00:29.1]} 27. Kb1 {[%clk 0:00:07.8]} 27... Nxe5 {[%clk
0:00:29.5]} 28. Ng5 {[%clk 0:00:07.3]} 28... Rg3 {[%clk 0:00:17.7]} 29. Ne6
{[%clk 0:00:04.9]} 29... Rf2 {[%clk 0:00:12.5]} 30. h4 {[%clk 0:00:02.3]} 30...
Nxd3 {[%clk 0:00:12.8]} 31. cxd3 {[%clk 0:00:01.8]} 31... Bd2 {[%clk 0:00:12.6]}
32. Rd1 {[%clk 0:00:01.2]} 32... Bc3 {[%clk 0:00:13]} 0-1

[Event "*** Titled Tuesday Blitz"]
[Site "Chess.com"]
[Date "2021.03.09"]
[Round "2"]
[White "NikolaN98"]
[Black "Vanina1989"]
[Result "0-1"]
[WhiteElo "2513"]
[BlackElo "2755"]
[TimeControl "180+1"]
[EndTime "10:18:57 PST"]
[Termination "Vanina1989 won on time"]

1. e4 {[%clk 0:03:00.9]} 1... c6 {[%clk 0:02:59]} 2. d4 {[%clk 0:02:58.9]} 2...
d5 {[%clk 0:02:58.7]} 3. exd5 {[%clk 0:02:58.6]} 3... cxd5 {[%clk 0:02:58.7]} 4.
Bd3 {[%clk 0:02:58.8]} 4... Nc6 {[%clk 0:02:58.4]} 5. c3 {[%clk 0:02:58.8]} 5...
g6 {[%clk 0:02:58.1]} 6. Nf3 {[%clk 0:02:52.6]} 6... Bg7 {[%clk 0:02:58.5]} 7.
Nbd2 {[%clk 0:02:48.4]} 7... Nh6 {[%clk 0:02:58.6]} 8. h4 {[%clk 0:02:40.4]}
8... Bf5 {[%clk 0:02:57.8]} 9. Be2 {[%clk 0:02:26.4]} 9... Qc7 {[%clk
0:02:54.6]} 10. h5 {[%clk 0:02:25.7]} 10... O-O-O {[%clk 0:02:48.1]} 11. Nb3
{[%clk 0:01:50.7]} 11... gxh5 {[%clk 0:02:29.7]} 12. Rxh5 {[%clk 0:01:47.8]}
12... Bg6 {[%clk 0:02:20.1]} 13. Rxh6 {[%clk 0:01:47.4]} 13... Bxh6 {[%clk
0:02:20.1]} 14. Bxh6 {[%clk 0:01:48.3]} 14... Rhe8 {[%clk 0:02:16.7]} 15. Qd2
{[%clk 0:01:45.8]} 15... e5 {[%clk 0:02:15.5]} 16. Nxe5 {[%clk 0:01:41.5]} 16...
Nxe5 {[%clk 0:02:15.6]} 17. dxe5 {[%clk 0:01:39.5]} 17... Qxe5 {[%clk
0:02:13.7]} 18. Be3 {[%clk 0:01:35.6]} 18... a6 {[%clk 0:01:58.5]} 19. Nd4
{[%clk 0:01:32.9]} 19... h5 {[%clk 0:01:40]} 20. O-O-O {[%clk 0:01:31.6]} 20...
Qe4 {[%clk 0:01:36.7]} 21. Bd3 {[%clk 0:01:15]} 21... Qxg2 {[%clk 0:01:36.1]}
22. Bf5+ {[%clk 0:01:09.1]} 22... Bxf5 {[%clk 0:01:29.4]} 23. Nxf5 {[%clk
0:01:08.5]} 23... Qg4 {[%clk 0:01:27.7]} 24. Nd4 {[%clk 0:00:42.2]} 24... h4
{[%clk 0:01:24.8]} 25. f3 {[%clk 0:00:41.3]} 25... Qg6 {[%clk 0:01:14.1]} 26.
Bf4 {[%clk 0:00:38]} 26... h3 {[%clk 0:01:02.1]} 27. Bh2 {[%clk 0:00:37.6]}
27... Qf6 {[%clk 0:00:43.1]} 28. Qf2 {[%clk 0:00:26.9]} 28... Rg8 {[%clk
0:00:37]} 29. Nb3 {[%clk 0:00:17.3]} 29... Rg2 {[%clk 0:00:31.8]} 30. Qc5+
{[%clk 0:00:12.9]} 30... Qc6 {[%clk 0:00:31.7]} 31. Rh1 {[%clk 0:00:10.3]} 31...
Qxc5 {[%clk 0:00:31.2]} 32. Nxc5 {[%clk 0:00:11.2]} 32... Re8 {[%clk 0:00:30.5]}
33. Nd3 {[%clk 0:00:07.6]} 33... Ree2 {[%clk 0:00:29.9]} 34. Bf4 {[%clk
0:00:05.6]} 34... h2 {[%clk 0:00:29.7]} 35. Bxh2 {[%clk 0:00:04.5]} 35... Rxh2
{[%clk 0:00:29.8]} 36. Rg1 {[%clk 0:00:04.6]} 36... Rc2+ {[%clk 0:00:29.8]} 37.
Kb1 {[%clk 0:00:04.2]} 37... Rcd2 {[%clk 0:00:30.2]} 38. Nf4 {[%clk 0:00:01.9]}
38... Rxb2+ {[%clk 0:00:29.7]} 0-1

[Event "*** Titled Tuesday Blitz"]
[Site "Chess.com"]
[Date "2021.03.09"]
[Round "2"]
[White "jaskol95"]
[Black "LamaChampetre"]
[Result "1-0"]
[WhiteElo "2446"]
[BlackElo "2207"]
[TimeControl "180+1"]
[EndTime "10:18:57 PST"]
[Termination "jaskol95 won on time"]

1. d4 {[%clk 0:03:00.9]} 1... Nf6 {[%clk 0:02:59.3]} 2. Bf4 {[%clk 0:03:00.8]}
2... g6 {[%clk 0:02:57.7]} 3. Nc3 {[%clk 0:02:59.4]} 3... d5 {[%clk 0:02:48.8]}
4. e3 {[%clk 0:02:58.3]} 4... Bg7 {[%clk 0:02:48.3]} 5. h4 {[%clk 0:02:56.9]}
5... h5 {[%clk 0:02:45.4]} 6. Nf3 {[%clk 0:02:55.4]} 6... Bg4 {[%clk 0:02:45.4]}
7. Be2 {[%clk 0:02:55.4]} 7... c5 {[%clk 0:02:09.3]} 8. Nb5 {[%clk 0:02:52.9]}
8... Na6 {[%clk 0:02:07.1]} 9. c3 {[%clk 0:02:52.8]} 9... O-O {[%clk 0:02:05.2]}
10. a4 {[%clk 0:02:50]} 10... Ne4 {[%clk 0:01:24.4]} 11. Ne5 {[%clk 0:02:38.8]}
11... Bxe2 {[%clk 0:01:20.4]} 12. Qxe2 {[%clk 0:02:39.7]} 12... Qe8 {[%clk
0:00:55.9]} 13. g4 {[%clk 0:01:37]} 13... f6 {[%clk 0:00:51.3]} 14. Nd3 {[%clk
0:01:36.8]} 14... e5 {[%clk 0:00:49]} 15. dxe5 {[%clk 0:01:32.8]} 15... fxe5
{[%clk 0:00:48.4]} 16. gxh5 {[%clk 0:01:28.6]} 16... gxh5 {[%clk 0:00:40.6]} 17.
Rg1 {[%clk 0:01:08.1]} 17... exf4 {[%clk 0:00:34]} 18. Nxf4 {[%clk 0:01:09]}
18... Rxf4 {[%clk 0:00:29.6]} 19. exf4 {[%clk 0:01:09.9]} 19... Nf6 {[%clk
0:00:24.6]} 20. Rg5 {[%clk 0:00:54.9]} 20... Qc6 {[%clk 0:00:21]} 21. O-O-O
{[%clk 0:00:50.3]} 21... d4 {[%clk 0:00:19.8]} 22. Rdg1 {[%clk 0:00:48.4]} 22...
Ne8 {[%clk 0:00:15.3]} 23. Rg6 {[%clk 0:00:31.4]} 23... Qd5 {[%clk 0:00:10.8]}
24. c4 {[%clk 0:00:25.5]} 24... Qf7 {[%clk 0:00:10.2]} 25. Qxh5 {[%clk
0:00:19.9]} 25... Nb4 {[%clk 0:00:08.5]} 26. f5 {[%clk 0:00:16.6]} 26... Nd3+
{[%clk 0:00:06.7]} 27. Kb1 {[%clk 0:00:16.3]} 27... Nf4 {[%clk 0:00:06.7]} 28.
Rxg7+ {[%clk 0:00:14.3]} 28... Nxg7 {[%clk 0:00:05]} 29. Qg5 {[%clk 0:00:14.9]}
29... Re8 {[%clk 0:00:01.7]} 30. f6 {[%clk 0:00:13.3]} 1-0

[Event "*** Titled Tuesday Blitz"]
[Site "Chess.com"]
[Date "2021.03.09"]
[Round "2"]
[White "pavelalexandru07"]
[Black "NateSolon"]
[Result "0-1"]
[WhiteElo "2312"]
[BlackElo "2596"]
[TimeControl "180+1"]
[EndTime "10:18:59 PST"]
[Termination "NateSolon won by resignation"]

1. e4 {[%clk 0:03:00.9]} 1... c5 {[%clk 0:02:59.6]} 2. Nf3 {[%clk 0:02:59.3]}
2... d6 {[%clk 0:03:00]} 3. d4 {[%clk 0:02:58.9]} 3... cxd4 {[%clk 0:03:00.9]}
4. Nxd4 {[%clk 0:02:58.1]} 4... Nf6 {[%clk 0:03:01.1]} 5. Nc3 {[%clk 0:02:57.8]}
5... a6 {[%clk 0:03:01.2]} 6. Bg5 {[%clk 0:02:46.2]} 6... e6 {[%clk 0:03:01.2]}
7. f4 {[%clk 0:02:39.2]} 7... Be7 {[%clk 0:03:01.3]} 8. Qf3 {[%clk 0:02:36.9]}
8... Qc7 {[%clk 0:03:01.3]} 9. O-O-O {[%clk 0:02:33]} 9... Nbd7 {[%clk
0:03:00.8]} 10. Be2 {[%clk 0:02:26.5]} 10... b5 {[%clk 0:02:59.7]} 11. a3 {[%clk
0:02:15.8]} 11... Bb7 {[%clk 0:02:50.1]} 12. Rhe1 {[%clk 0:02:03.3]} 12... O-O
{[%clk 0:02:49.5]} 13. Kb1 {[%clk 0:01:57.9]} 13... Qb6 {[%clk 0:02:41.7]} 14.
g4 {[%clk 0:01:40.1]} 14... Rfc8 {[%clk 0:02:39.5]} 15. Bf1 {[%clk 0:01:27.2]}
15... b4 {[%clk 0:02:33.5]} 16. axb4 {[%clk 0:01:22.5]} 16... Qxb4 {[%clk
0:02:34.4]} 17. f5 {[%clk 0:01:08.1]} 17... Ne5 {[%clk 0:02:33.5]} 18. Qh3
{[%clk 0:00:50.3]} 18... Rab8 {[%clk 0:02:18.8]} 19. Bc1 {[%clk 0:00:39.2]}
19... Nexg4 {[%clk 0:01:26.3]} 20. Qg3 {[%clk 0:00:12.2]} 20... e5 {[%clk
0:01:02.7]} 21. Nb3 {[%clk 0:00:08.6]} 21... Nxe4 {[%clk 0:00:53.9]} 22. Nxe4
{[%clk 0:00:08.7]} 22... Bxe4 {[%clk 0:00:53.9]} 23. Bd3 {[%clk 0:00:09.3]}
23... Bxd3 {[%clk 0:00:49.8]} 24. Rxd3 {[%clk 0:00:09.4]} 24... Nf6 {[%clk
0:00:32]} 25. Bd2 {[%clk 0:00:09.1]} 25... Qg4 {[%clk 0:00:27.4]} 26. Qf2 {[%clk
0:00:08.6]} 26... Ne4 {[%clk 0:00:23.4]} 27. Qe3 {[%clk 0:00:07.5]} 27... Nxd2+
{[%clk 0:00:22.5]} 28. Qxd2 {[%clk 0:00:06.9]} 28... Qxf5 {[%clk 0:00:21.2]} 29.
Rg1 {[%clk 0:00:07.6]} 29... g6 {[%clk 0:00:20.5]} 30. Nc1 {[%clk 0:00:05]}
30... e4 {[%clk 0:00:19.3]} 31. Rdg3 {[%clk 0:00:04.4]} 31... Bf6 {[%clk
0:00:17.9]} 32. b3 {[%clk 0:00:04.9]} 32... d5 {[%clk 0:00:17.5]} 33. Ne2 {[%clk
0:00:04.5]} 33... Qe5 {[%clk 0:00:17.4]} 34. c3 {[%clk 0:00:04.1]} 34... Rxb3+
{[%clk 0:00:17.2]} 35. Kc2 {[%clk 0:00:04.1]} 35... Rcb8 {[%clk 0:00:17.7]} 36.
Rc1 {[%clk 0:00:03.6]} 36... Rb2+ {[%clk 0:00:17.9]} 37. Kd1 {[%clk 0:00:04]}
37... Rxd2+ {[%clk 0:00:18.8]} 38. Kxd2 {[%clk 0:00:04.9]} 38... Bg5+ {[%clk
0:00:19.2]} 39. Ke1 {[%clk 0:00:05.8]} 39... Bxc1 {[%clk 0:00:19.2]} 40. Kf2
{[%clk 0:00:06.7]} 0-1

[Event "*** Titled Tuesday Blitz"]
[Site "Chess.com"]
[Date "2021.03.09"]
[Round "2"]
[White "Dedic8"]
[Black "Logman74"]
[Result "1-0"]
[WhiteElo "2809"]
[BlackElo "2349"]
[TimeControl "180+1"]
[EndTime "10:19:00 PST"]
[Termination "Dedic8 won on time"]

1. e4 {[%clk 0:03:00.9]} 1... c5 {[%clk 0:02:58.3]} 2. Nf3 {[%clk 0:03:00.4]}
2... d6 {[%clk 0:02:57.8]} 3. d4 {[%clk 0:03:00.5]} 3... cxd4 {[%clk 0:02:58.4]}
4. Nxd4 {[%clk 0:03:01.4]} 4... Nf6 {[%clk 0:02:58.8]} 5. Nc3 {[%clk 0:03:02]}
5... a6 {[%clk 0:02:59.3]} 6. Bg5 {[%clk 0:03:02.4]} 6... e6 {[%clk 0:02:59.3]}
7. f4 {[%clk 0:03:01.6]} 7... Qc7 {[%clk 0:02:57.6]} 8. Qf3 {[%clk 0:03:00]}
8... Be7 {[%clk 0:02:49.1]} 9. O-O-O {[%clk 0:02:59.6]} 9... Nc6 {[%clk
0:02:49.2]} 10. Nxc6 {[%clk 0:02:56.4]} 10... bxc6 {[%clk 0:02:48.7]} 11. Bd3
{[%clk 0:02:51.8]} 11... e5 {[%clk 0:02:46.6]} 12. f5 {[%clk 0:02:46.9]} 12...
Bb7 {[%clk 0:02:28]} 13. h4 {[%clk 0:02:41.2]} 13... h5 {[%clk 0:02:18.3]} 14.
Bc4 {[%clk 0:02:36.9]} 14... Ng4 {[%clk 0:02:09.8]} 15. Kb1 {[%clk 0:02:30.5]}
15... Rd8 {[%clk 0:01:55.2]} 16. Rd3 {[%clk 0:02:14.2]} 16... O-O {[%clk
0:01:49.1]} 17. Rhd1 {[%clk 0:02:13.8]} 17... Bf6 {[%clk 0:01:34.9]} 18. R1d2
{[%clk 0:02:06.5]} 18... Qb6 {[%clk 0:01:21.8]} 19. Bb3 {[%clk 0:01:31.5]} 19...
Qg1+ {[%clk 0:01:19]} 20. Rd1 {[%clk 0:01:30.8]} 20... Qc5 {[%clk 0:01:16.9]}
21. a3 {[%clk 0:01:14.2]} 21... a5 {[%clk 0:01:16.6]} 22. Na4 {[%clk 0:01:13.6]}
22... Qb5 {[%clk 0:00:51.6]} 23. Rxd6 {[%clk 0:01:12.3]} 23... Rxd6 {[%clk
0:00:44.7]} 24. Rxd6 {[%clk 0:01:13.2]} 24... c5 {[%clk 0:00:41.3]} 25. Nc3
{[%clk 0:01:11.6]} 25... Qe8 {[%clk 0:00:36.1]} 26. Bd5 {[%clk 0:01:08.8]} 26...
Bxd5 {[%clk 0:00:15.2]} 27. Nxd5 {[%clk 0:01:08.9]} 27... Bxg5 {[%clk
0:00:12.2]} 28. hxg5 {[%clk 0:01:07.5]} 28... Qb8 {[%clk 0:00:12.8]} 29. Ne7+
{[%clk 0:00:53.8]} 29... Kh7 {[%clk 0:00:11.4]} 30. g6+ {[%clk 0:00:43.1]} 30...
fxg6 {[%clk 0:00:07.3]} 31. Rxg6 {[%clk 0:00:44]} 31... Qb5 {[%clk 0:00:02]} 32.
Qd1 {[%clk 0:00:20.3]} 32... Rb8 {[%clk 0:00:01.5]} 33. b3 {[%clk 0:00:20.8]}
33... Qc4 {[%clk 0:00:01.7]} 34. Rxg4 {[%clk 0:00:19.7]} 1-0

[Event "*** Titled Tuesday Blitz"]
[Site "Chess.com"]
[Date "2021.03.09"]
[Round "2"]
[White "Azerichess"]
[Black "Lupul_Cenusiu"]
[Result "1-0"]
[WhiteElo "2972"]
[BlackElo "2581"]
[TimeControl "180+1"]
[EndTime "10:19:02 PST"]
[Termination "Azerichess won by resignation"]

1. d4 {[%clk 0:03:00.9]} 1... Nf6 {[%clk 0:02:59.7]} 2. c4 {[%clk 0:03:00.9]}
2... g6 {[%clk 0:02:58.2]} 3. Nc3 {[%clk 0:02:59.8]} 3... Bg7 {[%clk 0:02:57.3]}
4. Nf3 {[%clk 0:02:58]} 4... d6 {[%clk 0:02:56.7]} 5. Bg5 {[%clk 0:02:54.9]}
5... Nbd7 {[%clk 0:02:54.9]} 6. Qd2 {[%clk 0:02:52.2]} 6... h6 {[%clk
0:02:53.9]} 7. Bf4 {[%clk 0:02:49.8]} 7... Nh5 {[%clk 0:02:53.5]} 8. Be3 {[%clk
0:02:47.9]} 8... e5 {[%clk 0:02:44.5]} 9. O-O-O {[%clk 0:02:17.2]} 9... c6
{[%clk 0:02:39.7]} 10. dxe5 {[%clk 0:02:15.5]} 10... dxe5 {[%clk 0:02:37.2]} 11.
g4 {[%clk 0:02:11.6]} 11... Nhf6 {[%clk 0:02:25.7]} 12. Nxe5 {[%clk 0:02:10.9]}
12... O-O {[%clk 0:02:22.4]} 13. Nxd7 {[%clk 0:01:52.5]} 13... Qxd7 {[%clk
0:02:20.6]} 14. Qxd7 {[%clk 0:01:51.5]} 14... Nxd7 {[%clk 0:02:14.9]} 15. Bd4
{[%clk 0:01:43.6]} 15... Ne5 {[%clk 0:02:09.6]} 16. Bxe5 {[%clk 0:01:28.3]}
16... Bxe5 {[%clk 0:02:08.7]} 17. h3 {[%clk 0:01:28.4]} 17... Bxc3 {[%clk
0:02:05.9]} 18. bxc3 {[%clk 0:01:28]} 18... Re8 {[%clk 0:02:05.1]} 19. e3 {[%clk
0:01:27.6]} 19... Be6 {[%clk 0:02:03.8]} 20. a3 {[%clk 0:01:24]} 20... Rad8
{[%clk 0:01:59.8]} 21. Be2 {[%clk 0:01:23.3]} 21... Kf8 {[%clk 0:01:56.9]} 22.
Kc2 {[%clk 0:01:20.1]} 22... Ke7 {[%clk 0:01:56.5]} 23. c5 {[%clk 0:01:13.1]}
23... Rxd1 {[%clk 0:01:52]} 24. Rxd1 {[%clk 0:01:14]} 24... Rd8 {[%clk
0:01:52.2]} 25. Rb1 {[%clk 0:01:12.7]} 25... Rd7 {[%clk 0:01:50.2]} 26. c4
{[%clk 0:01:09.2]} 26... g5 {[%clk 0:01:47.2]} 27. Kc3 {[%clk 0:01:08.7]} 27...
f5 {[%clk 0:01:43.7]} 28. Rd1 {[%clk 0:00:59.8]} 28... Rxd1 {[%clk 0:01:40.7]}
29. Bxd1 {[%clk 0:01:00.7]} 29... Kf6 {[%clk 0:01:40.5]} 30. Kd4 {[%clk
0:01:00.9]} 30... Bd7 {[%clk 0:01:35.3]} 31. f4 {[%clk 0:00:57.5]} 31... Be6
{[%clk 0:01:29.4]} 32. gxf5 {[%clk 0:00:39.6]} 32... Bxf5 {[%clk 0:01:23.9]} 33.
Bg4 {[%clk 0:00:39.9]} 33... gxf4 {[%clk 0:01:17]} 34. exf4 {[%clk 0:00:39.6]}
34... Bc2 {[%clk 0:00:55.3]} 35. Bc8 {[%clk 0:00:37.7]} 35... Bd1 {[%clk
0:00:54.3]} 36. Bxb7 {[%clk 0:00:36.2]} 36... Bf3 {[%clk 0:00:53]} 37. Bc8
{[%clk 0:00:35.3]} 37... h5 {[%clk 0:00:52.1]} 38. Ke3 {[%clk 0:00:20.7]} 38...
Bg2 {[%clk 0:00:49.4]} 39. h4 {[%clk 0:00:19.5]} 39... Kg6 {[%clk 0:00:44.5]}
40. Bd7 {[%clk 0:00:18.8]} 40... Kf6 {[%clk 0:00:43.4]} 41. Be8 {[%clk
0:00:18.7]} 41... Bf1 {[%clk 0:00:41.9]} 42. Bxh5 {[%clk 0:00:16.8]} 42... Bxc4
{[%clk 0:00:41.8]} 43. Bf3 {[%clk 0:00:16.9]} 43... Bb5 {[%clk 0:00:41.9]} 44.
Be4 {[%clk 0:00:16.5]} 44... Ba4 {[%clk 0:00:39.8]} 45. h5 {[%clk 0:00:15.1]}
45... Kg7 {[%clk 0:00:39.5]} 46. Kd4 {[%clk 0:00:13.9]} 46... Kf6 {[%clk
0:00:39.2]} 47. h6 {[%clk 0:00:13.5]} 1-0